bitfinex-derivatives/quotes_BNBF0:USTF0_20250309
["timestamp","ask_amount","ask_price","bid_price","bid_amount"]
[1741511746568,0.653,583.88,583.17,0.28789071]
[1741511747167,0.95123501,583.88,583.17,0.28789071]
[1741511747374,0.95123501,583.88,583.16,0.974]
[1741511747671,0.95123501,583.88,583.17,0.28788333]
[1741511748875,0.653,583.88,583.17,0.28788333]
[1741511749071,0.29823501,583.87,583.17,0.28788333]
[1741511749270,0.29823501,583.87,583.16,0.974]
[1741511749473,0.29823501,583.87,583.17,0.28787654]
[1741511750976,0.29823501,583.87,583.16,0.974]
[1741511751175,0.653,583.88,583.17,0.28787709]
[1741511752678,0.653,583.88,583.16,0.974]
[1741511752979,0.653,583.88,583.17,0.28787622]
[1741511756080,0.676,583.87,583.17,1.08387622]
[1741511756280,0.676,583.87,583.18,0.28787622]
[1741511760088,0.676,583.87,583.19,0.28785478]
[1741511760286,0.676,583.87,583.18,0.28785478]
[1741511760482,0.676,583.87,583.17,0.796]
[1741511760483,0.676,583.87,583.19,0.28785478]
[1741511760789,0.676,583.87,583.2,0.28785478]
[1741511760989,0.676,583.87,583.21,0.28785478]
[1741511761186,0.676,583.87,583.18,0.28785478]
[1741511761387,0.676,583.87,583.19,0.28785478]
[1741511761690,0.676,583.87,583.2,0.28785478]
[1741511761893,0.676,583.87,583.18,0.28785478]
[1741511762190,0.676,583.87,583.19,0.28785478]
[1741511762390,0.676,583.87,583.18,0.28785478]
[1741511762587,0.676,583.87,583.19,0.28785478]
[1741511762789,0.676,583.87,583.2,0.28785478]
[1741511762990,0.676,583.87,583.21,0.28786537]
[1741511763191,0.676,583.87,583.18,0.28786537]
[1741511763389,0.676,583.87,583.19,0.28786537]
[1741511763591,0.676,583.87,583.18,0.28786537]
[1741511763891,0.676,583.87,583.17,0.796]
[1741511763892,0.676,583.87,583.19,0.28786537]
[1741511764089,0.676,583.87,583.2,0.28786537]
[1741511764286,0.676,583.87,583.18,0.28786537]
[1741511764488,0.676,583.87,583.19,0.28786537]
[1741511764689,0.676,583.87,583.2,0.28786537]
[1741511764892,0.676,583.87,583.21,0.28786509]
[1741511765094,0.676,583.87,583.18,0.28786509]
[1741511765292,0.676,583.87,583.19,0.28786509]
[1741511765494,0.676,583.87,583.2,0.28786509]
[1741511765691,0.676,583.87,583.18,0.28786509]
[1741511765889,0.676,583.87,583.19,0.28786509]
[1741511766092,0.676,583.87,583.18,0.28786509]
[1741511766288,0.676,583.87,583.19,0.28786509]
[1741511766490,0.676,583.87,583.18,0.28786509]
[1741511766694,0.653,583.86,583.19,0.28786277]
[1741511766892,0.653,583.86,583.18,0.28786277]
[1741511767093,0.653,583.86,583.19,0.28786277]
[1741511767294,0.653,583.86,583.17,0.28786277]
[1741511767490,0.653,583.86,583.18,0.28786277]
[1741511767693,0.653,583.86,583.16,0.28786277]
[1741511767890,0.653,583.86,583.17,0.28786277]
[1741511768096,0.653,583.86,583.18,0.28786277]
[1741511768394,0.653,583.86,583.16,0.28786277]
[1741511768594,0.653,583.86,583.15,1.543]
[1741511768595,0.653,583.86,583.17,0.28786277]
[1741511768795,0.653,583.86,583.16,0.28786277]
[1741511768997,0.653,583.86,583.17,0.28786277]
[1741511769198,0.653,583.86,583.16,0.28786277]
[1741511769495,0.653,583.86,583.17,0.28786277]
[1741511769690,0.653,583.86,583.16,0.28786277]
[1741511770096,0.653,583.86,583.16,1.11186277]
[1741511770295,0.653,583.86,583.17,0.28786277]
[1741511773393,0.653,583.86,583.17,1.21586277]
[1741511773795,0.653,583.86,583.18,0.28786277]
[1741511775597,0.653,583.86,583.17,0.928]
[1741511775797,0.653,583.86,583.18,0.28787056]
[1741511776099,0.709,583.85,583.18,0.28787056]
[1741511776804,0.709,583.85,583.17,0.928]
[1741511779299,0.709,583.85,583.17,1.749]
[1741511779603,0.709,583.85,583.18,0.28792743]
[1741511780098,0.709,583.85,583.17,1.749]
[1741511780702,0.709,583.85,583.18,0.28792534]
[1741511782695,0.709,583.85,583.17,1.749]
[1741511782901,0.709,583.85,583.18,0.28792806]
[1741511785207,0.29824779,583.84,583.18,0.28792806]
[1741511786307,0.29824779,583.84,583.18,0.832]
[1741511786904,0.29824779,583.84,583.19,0.2879209]
[1741511787305,0.29824779,583.84,583.18,0.832]
[1741511787902,0.709,583.85,583.18,0.832]
[1741511788508,0.709,583.85,583.18,1.58]
[1741511789003,0.709,583.85,583.19,0.28792085]
[1741511789207,0.2982414,583.84,583.19,0.28792085]
[1741511789709,0.2982414,583.84,583.18,1.58]
[1741511790507,0.2982414,583.84,583.19,0.28792116]
[1741511790703,0.2982414,583.84,583.18,1.58]
[1741511790907,0.709,583.85,583.18,1.58]
[1741511791307,0.709,583.85,583.19,0.28792313]
[1741511791706,0.709,583.85,583.18,1.58]
[1741511792110,0.29824652,583.84,583.18,1.58]
[1741511794009,0.709,583.85,583.18,1.58]
[1741511795512,0.709,583.85,583.19,0.3429414]
[1741511795717,0.709,583.85,583.2,0.28759801]
[1741511795918,0.709,583.85,583.21,0.34292964]
[1741511796119,0.709,583.85,583.22,0.28759801]
[1741511796417,0.709,583.85,583.23,0.34291788]
[1741511796617,0.709,583.85,583.24,0.28759801]
[1741511797018,0.709,583.85,583.25,0.34290612]
[1741511797413,0.709,583.85,583.26,0.28764199]
[1741511797617,0.709,583.85,583.27,0.34289437]
[1741511797814,0.709,583.85,583.28,0.28764199]
[1741511798319,0.709,583.85,583.29,0.34288261]
[1741511798514,0.709,583.85,583.3,0.28764199]
[1741511798716,0.709,583.85,583.31,0.34287085]
[1741511799021,0.709,583.85,583.32,0.28764199]
[1741511799220,0.709,583.85,583.33,0.3428591]
[1741511799420,0.709,583.85,583.34,0.28764199]
[1741511799623,0.709,583.85,583.35,0.34284734]
[1741511799919,0.709,583.85,583.36,0.28764199]
[1741511800121,0.709,583.85,583.37,0.34283559]
[1741511800122,0.653,583.84,583.37,0.34283559]
[1741511800319,0.653,583.84,583.38,0.28764199]
[1741511800520,0.653,583.84,583.39,0.34282383]
[1741511800718,0.653,583.84,583.4,0.28764199]
[1741511801022,0.653,583.84,583.41,0.34281208]
[1741511801225,0.653,583.84,583.42,0.28764199]
[1741511801425,0.653,583.84,583.43,0.34280033]
[1741511801626,0.653,583.84,583.44,0.28764199]
[1741511801827,0.653,583.84,583.45,0.34278858]
[1741511802027,0.653,583.84,583.46,0.28764199]
[1741511802222,0.653,583.84,583.46,0.6304247]
[1741511802429,0.653,583.84,583.47,0.28764199]
[1741511802630,0.653,583.84,583.46,0.34278271]
[1741511802924,0.653,583.84,583.47,0.28768803]
[1741511803528,0.653,583.84,583.46,0.34278271]
[1741511803722,0.653,583.84,583.47,0.28768834]
[1741511804122,0.653,583.84,583.46,0.34278271]
[1741511806730,0.653,583.84,583.47,0.28769354]
[1741511806928,0.653,583.84,583.46,0.34278271]
[1741511810624,0.653,583.84,583.47,0.28769435]
[1741511812229,0.774,583.95,583.47,0.28769435]
[1741511813329,0.774,583.95,583.46,0.34278271]
[1741511813629,0.774,583.95,583.47,0.28770316]
[1741511815228,1.427,583.95,583.47,0.28770316]
[1741511816632,1.427,583.95,583.47,0.93070316]
[1741511817034,1.427,583.95,583.48,0.28770316]
[1741511817332,0.653,583.95,583.48,0.28770316]
[1741511817733,0.653,583.95,583.47,0.643]
[1741511819632,0.653,583.95,583.47,1.414]
[1741511820526,1.34,583.95,583.47,1.414]
[1741511821633,1.34,583.95,583.47,2.144]
[1741511822534,1.34,583.95,583.47,2.735]
[1741511827641,1.34,583.95,583.48,0.28767851]
[1741511832342,0.687,583.95,583.48,0.28767851]
[1741511834550,0.687,583.95,583.47,2.735]
[1741511835451,1.34,583.95,583.47,2.735]
[1741511844256,1.34,583.95,583.48,0.28773208]
[1741511844445,0.653,583.95,583.48,0.28773208]
[1741511850951,0.653,583.95,583.47,2.735]
[1741511851152,0.653,583.95,583.48,0.28773754]
[1741511854760,0.653,583.95,583.49,0.28771657]
[1741511854954,0.653,583.95,583.48,0.28771657]
[1741511857860,0.653,583.95,583.47,2.735]
[1741511858164,0.653,583.95,583.48,0.28768537]
[1741511859560,0.867,583.96,583.48,0.28768537]
[1741511862659,1.52,583.96,583.48,0.28768537]
[1741511863267,1.52,583.96,583.48,2.62668537]
[1741511863468,1.52,583.96,583.49,0.28768537]
[1741511870766,0.653,583.96,583.49,0.28768537]
[1741511875675,0.897,583.97,583.49,0.28768537]
[1741511876978,0.897,583.97,583.5,0.28768314]
[1741511877174,0.897,583.97,583.48,2.339]
[1741511877175,0.897,583.97,583.49,0.28768314]
[1741511878976,1.55,583.97,583.49,0.28768314]
[1741511880376,1.55,583.97,583.48,2.339]
[1741511883887,1.55,583.97,583.49,0.926]
[1741511890485,1.55,583.97,583.49,1.77]
[1741511896293,1.55,583.97,583.49,2.6]
[1741511897398,0.29816347,583.96,583.49,2.6]
[1741511898900,1.55,583.97,583.49,2.6]
[1741511899499,0.29816347,583.96,583.49,2.6]
[1741511904893,1.55,583.97,583.49,2.6]
[1741511905293,0.29816347,583.96,583.49,2.6]
[1741511907897,1.55,583.97,583.49,2.6]
[1741511908203,0.29816347,583.95,583.49,2.6]
[1741511910500,0.29816347,583.95,583.49,1.756]
[1741511910902,1.55,583.97,583.49,1.756]
[1741511912204,0.29816347,583.96,583.49,1.756]
[1741511914012,1.55,583.97,583.49,1.756]
[1741511914404,1.55,583.97,583.49,2.463]
[1741511915209,0.29818007,583.96,583.49,2.463]
[1741511915604,0.29818007,583.96,583.49,1.537]
[1741511916905,1.55,583.97,583.49,1.537]
[1741511918118,0.29819157,583.96,583.49,1.537]
[1741511919920,1.55,583.97,583.49,1.537]
[1741511921219,0.29819157,583.96,583.49,1.537]
[1741511923020,1.55,583.97,583.49,1.537]
[1741511923421,0.29819157,583.95,583.49,1.537]
[1741511925417,0.29819157,583.95,583.49,0.707]
[1741511926025,1.55,583.97,583.49,0.707]
[1741511927218,0.29820179,583.96,583.49,0.707]
[1741511927621,0.29820179,583.96,583.48,1.616]
[1741511928525,0.29820179,583.96,583.48,2.571]
[1741511928921,1.27687295,584.17,583.48,2.571]
[1741511929122,0.31490802,584.16,583.48,2.571]
[1741511929317,0.31490802,584.16,583.48,1.929]
[1741511930321,0.29817752,584.15,583.48,1.929]
[1741511930527,0.31490802,584.14,583.48,1.929]
[1741511930725,0.31490802,584.14,583.49,0.933]
[1741511931228,1.329,584.13,583.49,0.933]
[1741511931425,0.31490802,584.12,583.49,0.933]
[1741511932130,1.329,584.13,583.49,0.933]
[1741511932321,0.31493738,584.11,583.49,0.933]
[1741511932521,1.329,584.13,583.5,0.694]
[1741511932522,0.31493738,584.1,583.5,0.694]
[1741511932727,0.31493738,584.09,583.5,0.694]
[1741511933027,0.31493738,584.12,583.5,0.694]
[1741511933228,0.2981954,584.08,583.5,0.694]
[1741511933422,0.31493738,584.07,583.5,0.694]
[1741511935226,0.31493738,584.12,583.5,0.694]
[1741511935528,0.31493738,584.11,583.5,0.694]
[1741511935726,0.31493738,584.12,583.5,0.694]
[1741511935925,0.31493738,584.11,583.5,0.694]
[1741511936126,0.613143,584.1,583.5,0.694]
[1741511936323,0.31493738,584.09,583.5,0.694]
[1741511937526,0.34241884,584.08,583.5,0.694]
[1741511937730,0.31493738,584.07,583.5,0.694]
[1741511937931,0.65736208,584.07,583.5,0.694]
[1741511938127,0.31493738,584.06,583.5,0.694]
[1741511941831,0.31493738,584.06,583.51,0.648]
[1741511942232,0.29822607,584.05,583.51,0.648]
[1741511942534,0.31493738,584.04,583.51,0.648]
[1741511944130,0.31493738,584.06,583.51,0.648]
[1741511944437,0.31493738,584.05,583.51,0.648]
[1741511944736,0.31493738,584.04,583.51,0.648]
[1741511944933,0.31493738,584.06,583.51,0.648]
[1741511945134,0.29822479,584.04,583.51,0.648]
[1741511945333,0.31493738,584.03,583.51,0.648]
[1741511947239,0.31493738,584.06,583.51,0.648]
[1741511947435,0.31493738,584.05,583.51,0.648]
[1741511947632,0.31493738,584.06,583.51,0.648]
[1741511947935,0.31493738,584.05,583.51,0.648]
[1741511948132,0.31493738,584.06,583.51,0.648]
[1741511948335,0.61316217,584.05,583.51,0.648]
[1741511948537,0.31493738,584.04,583.51,0.648]
[1741511949833,0.31493738,584.04,583.52,0.868]
[1741511950239,0.31493738,584.03,583.52,0.868]
[1741511950440,0.31493738,584.06,583.52,0.868]
[1741511950633,0.31493738,584.05,583.52,0.868]
[1741511950834,0.31493738,584.06,583.52,0.868]
[1741511951339,0.29822351,584.04,583.52,0.868]
[1741511951544,0.31496316,584.03,583.52,0.868]
[1741511952840,0.31496316,584.03,583.52,1.516]
[1741511953039,0.31496316,584.06,583.52,1.516]
[1741511953341,0.31497032,584.05,583.52,1.516]
[1741511953541,0.31497032,584.06,583.52,1.516]
[1741511953842,0.31497032,584.05,583.52,1.516]
[1741511954040,0.3149754,584.04,583.52,1.516]
[1741511954743,0.31498783,584.03,583.52,1.516]
[1741511954944,0.31498783,584.04,583.52,1.516]
[1741511955242,0.31498409,584.03,583.52,1.516]
[1741511955445,0.31498409,584.04,583.52,1.516]
[1741511955642,0.31498409,584.03,583.52,1.516]
[1741511955843,0.31498409,584.02,583.52,1.516]
[1741511956038,0.31498409,584.06,583.52,1.516]
[1741511956842,0.29822351,584.05,583.52,1.516]
[1741511957045,0.31498409,584.04,583.52,1.516]
[1741511958546,0.653,584.03,583.52,1.516]
[1741511958742,0.3149731,584.02,583.52,1.516]
[1741511959343,0.674,584.01,583.52,1.516]
[1741511959546,0.3149731,584.0,583.52,1.516]
[1741511962151,0.674,584.01,583.52,1.516]
[1741511962352,0.29823118,583.99,583.52,1.516]
[1741511962553,0.3149872,583.98,583.52,1.516]
[1741511964751,0.31498234,583.97,583.52,1.516]
[1741511965051,0.31498234,583.96,583.52,1.516]
[1741511965253,0.31498234,583.98,583.52,1.516]
[1741511965551,0.29823374,583.95,583.52,1.516]
[1741511967951,1.95087295,584.01,583.52,1.516]
[1741511968152,0.31498234,584.0,583.52,1.516]
[1741511968354,0.29823118,583.94,583.52,1.516]
[1741511968552,0.674,584.01,583.52,1.516]
[1741511968753,0.314984,584.0,583.52,0.648]
[1741511969354,0.61321151,583.99,583.52,0.648]
[1741511969554,0.31498033,583.98,583.52,0.648]
[1741511971355,0.61321407,583.97,583.52,0.648]
[1741511971554,0.31498033,583.96,583.52,0.648]
[1741511972654,0.29823374,583.97,583.52,0.648]
[1741511973658,0.29823374,583.97,583.48,1.702]
[1741511973853,0.674,584.01,583.48,1.702]
[1741511974057,0.31496569,584.0,583.48,1.702]
[1741511974258,0.29822862,583.96,583.48,1.702]
[1741511975261,0.31496785,583.95,583.48,1.702]
[1741511976656,0.3149665,583.94,583.48,1.702]
[1741511976964,1.27687295,584.0,583.48,1.702]
[1741511977461,0.29823501,583.93,583.48,1.702]
[1741511977663,1.27687295,584.0,583.48,1.702]
[1741511977960,0.31497092,583.99,583.48,1.702]
[1741511978362,0.31496664,583.98,583.48,1.702]
[1741511978661,0.31496664,583.97,583.48,1.702]
[1741511980064,1.27687295,584.0,583.48,1.702]
[1741511980364,0.29823246,583.96,583.48,1.702]
[1741511980562,0.31496763,583.95,583.48,1.702]
[1741511981965,0.29823246,583.96,583.48,1.702]
[1741511982164,0.31496754,583.95,583.48,1.702]
[1741511983062,0.31496754,583.94,583.48,1.702]
[1741511983266,0.31496754,583.93,583.48,1.702]
[1741511983467,1.27687295,583.99,583.48,1.702]
[1741511983468,0.31496754,583.92,583.48,1.702]
[1741511983765,0.31496754,583.91,583.48,1.702]
[1741511983966,0.31496754,583.9,583.48,1.702]
[1741511984261,0.31496754,583.89,583.48,1.702]
[1741511984467,0.29823118,583.94,583.48,1.702]
[1741511984667,0.31496882,583.93,583.48,1.702]
[1741511985466,0.31497014,583.92,583.48,1.702]
[1741511985866,0.31497014,583.93,583.48,1.702]
[1741511986067,0.31497014,583.92,583.48,1.702]
[1741511986369,0.29823757,583.91,583.48,1.702]
[1741511988865,1.27687295,583.93,583.48,1.702]
[1741511989271,0.29823118,583.92,583.48,1.702]
[1741511991975,0.653,583.96,583.48,1.702]
[1741511992573,1.633,583.96,583.48,1.702]
[1741511993273,0.29821712,583.95,583.48,1.702]
[1741511993573,0.29821712,583.95,583.48,0.745]
[1741511994875,1.633,583.96,583.48,0.745]
[1741511995375,0.29819668,583.94,583.48,0.745]
[1741511998179,1.633,583.96,583.48,0.745]
[1741511999177,0.29819668,583.95,583.48,0.745]
[1741512000975,1.633,583.96,583.48,0.745]
[1741512001179,0.29819668,583.94,583.48,0.745]
[1741512002176,1.633,583.96,583.48,0.745]
[1741512003382,0.29819668,583.95,583.48,0.745]
[1741512003980,1.633,583.96,583.48,0.745]
[1741512005185,0.29819668,583.95,583.48,0.745]
[1741512007092,1.633,583.96,583.46,0.823]
[1741512007489,0.653,583.96,583.47,0.84]
[1741512008289,0.29819796,583.95,583.47,0.84]
[1741512009889,0.653,583.96,583.47,0.84]
[1741512010286,0.653,583.96,583.48,0.827]
[1741512010684,1.489,583.96,583.48,0.827]
[1741512011087,0.29816602,583.95,583.48,0.827]
[1741512012994,1.489,583.96,583.48,0.827]
[1741512014191,0.29816602,583.95,583.48,0.827]
[1741512016098,1.489,583.96,583.48,0.827]
[1741512017191,0.29816602,583.95,583.48,0.827]
[1741512018995,1.489,583.96,583.48,0.827]
[1741512020292,0.29816602,583.95,583.48,0.827]
[1741512021999,1.489,583.96,583.48,0.827]
[1741512023300,0.29816602,583.95,583.48,0.827]
[1741512024998,1.489,583.96,583.48,0.827]
[1741512025998,0.29816602,583.95,583.48,0.827]
[1741512027903,1.489,583.96,583.48,0.827]
[1741512029109,0.29816602,583.95,583.48,0.827]
[1741512031111,1.489,583.96,583.48,0.827]
[1741512032410,0.29816602,583.95,583.48,0.827]
[1741512034010,1.489,583.96,583.48,0.827]
[1741512035104,0.29819413,583.95,583.48,0.827]
[1741512037111,1.489,583.96,583.48,0.827]
[1741512037711,0.29819668,583.95,583.48,2.375]
[1741512040015,1.489,583.96,583.48,2.375]
[1741512041216,0.29819668,583.95,583.48,2.375]
[1741512043019,1.489,583.96,583.48,2.375]
[1741512043217,0.29819668,583.94,583.48,2.375]
[1741512048916,1.489,583.96,583.48,2.375]
[1741512049321,0.29819668,583.93,583.48,2.375]
[1741512051921,1.489,583.96,583.48,2.375]
[1741512052320,0.2982069,583.92,583.48,2.375]
[1741512055031,1.489,583.96,583.48,2.375]
[1741512055231,0.29823246,583.91,583.48,2.375]
[1741512057630,0.31505503,583.9,583.48,2.375]
[1741512058237,0.31505503,583.95,583.48,2.375]
[1741512058634,0.34250094,583.94,583.48,2.375]
[1741512058835,0.31505503,583.93,583.48,2.375]
[1741512059336,0.3150607,583.92,583.48,2.375]
[1741512060432,0.29827719,583.93,583.48,2.375]
[1741512060629,0.31505899,583.92,583.48,2.375]
[1741512061840,0.29827719,583.93,583.48,2.375]
[1741512062041,0.3150871,583.92,583.48,2.375]
[1741512063744,0.65760654,583.91,583.48,1.649]
[1741512063941,0.31508801,583.9,583.48,1.649]
[1741512064244,0.34253027,583.89,583.48,1.649]
[1741512064543,0.31508801,583.88,583.48,1.649]
[1741512064739,0.342542,583.87,583.48,1.649]
[1741512064944,0.31508801,583.86,583.48,1.649]
[1741512065243,0.34255373,583.85,583.48,0.822]
[1741512065445,0.31508801,583.84,583.48,0.822]
[1741512067146,0.29831299,583.83,583.48,0.822]
[1741512067346,0.61339738,583.83,583.48,0.822]
[1741512067548,0.31508439,583.82,583.48,0.822]
[1741512069152,0.29831299,583.83,583.48,0.822]
[1741512069350,0.3150908,583.82,583.48,0.822]
[1741512070253,0.61340635,583.81,583.48,0.822]
[1741512070447,0.3150908,583.8,583.48,0.822]
[1741512072652,0.29831555,583.81,583.48,0.822]
[1741512072847,0.31507687,583.8,583.48,0.822]
[1741512073248,0.29831043,583.79,583.48,0.822]
[1741512073447,0.31507687,583.78,583.48,0.822]
[1741512076152,0.31507687,583.84,583.48,0.822]
[1741512076352,0.29831299,583.77,583.48,0.822]
[1741512076553,0.31509589,583.76,583.48,0.822]
[1741512076750,0.31509589,583.75,583.48,0.822]
[1741512076953,0.31509589,583.84,583.48,0.822]
[1741512077149,0.31509589,583.83,583.48,0.822]
[1741512077352,0.31509589,583.84,583.48,0.822]
[1741512077556,0.61341144,583.83,583.48,0.822]
[1741512077756,0.31509589,583.82,583.48,0.822]
[1741512079155,0.3150939,583.81,583.48,0.822]
[1741512079356,0.29831555,583.81,583.48,0.822]
[1741512079656,0.3150939,583.8,583.48,0.822]
[1741512081653,0.29831555,583.81,583.48,0.822]
[1741512082058,0.34255373,583.85,583.48,0.822]
[1741512082456,0.29829765,583.8,583.48,0.822]
[1741512085060,0.34255373,583.85,583.48,0.822]
[1741512085766,0.34255373,583.85,583.3,1.018]
[1741512086167,0.31502467,583.84,583.3,1.018]
[1741512086366,0.61331592,583.84,583.3,1.018]
[1741512086566,0.29829125,583.84,583.3,1.018]
[1741512087665,0.29829125,583.84,583.3,1.836]
[1741512087861,0.34255373,583.85,583.3,1.836]
[1741512088062,0.34255373,583.85,583.3,2.752]
[1741512088266,0.29829253,583.83,583.3,2.752]
[1741512088867,0.29829253,583.83,583.3,3.64]
[1741512089370,1.92529253,583.83,583.3,3.64]
[1741512091066,1.627,583.83,583.3,3.64]
[1741512091271,0.29828231,583.82,583.3,3.64]
[1741512094068,1.627,583.83,583.3,3.64]
[1741512095170,0.29827208,583.82,583.3,3.64]
[1741512096975,1.627,583.83,583.3,3.64]
[1741512098076,0.29829253,583.82,583.3,3.64]
[1741512099878,1.627,583.83,583.3,3.64]
[1741512100279,0.29829253,583.81,583.3,3.64]
[1741512102976,1.627,583.83,583.3,3.64]
[1741512103377,0.29829253,583.8,583.3,3.64]
[1741512105984,0.974,583.83,583.3,3.64]
[1741512106385,0.29827464,583.79,583.3,3.64]
[1741512107587,0.653,583.78,583.3,3.64]
[1741512109482,0.29828103,583.77,583.3,3.64]
[1741512109880,0.29828103,583.77,583.3,1.706]
[1741512111995,1.531,583.78,583.3,1.706]
[1741512112387,0.29828103,583.77,583.3,1.706]
[1741512114997,1.531,583.78,583.3,1.706]
[1741512115395,0.29828103,583.77,583.3,1.706]
[1741512117898,1.531,583.78,583.3,1.706]
[1741512118297,0.29828103,583.77,583.3,1.706]
[1741512120994,1.531,583.78,583.3,1.706]
[1741512121402,0.29827847,583.77,583.3,1.706]
[1741512123901,0.29827847,583.77,583.3,0.818]
[1741512126994,1.531,583.78,583.3,0.818]
[1741512127401,0.29827847,583.76,583.3,0.818]
[1741512130104,1.531,583.78,583.3,0.818]
[1741512131306,0.29827847,583.77,583.3,0.818]
[1741512133104,1.531,583.78,583.3,0.818]
[1741512133297,0.29827847,583.76,583.3,0.818]
[1741512136003,1.531,583.78,583.3,0.818]
[1741512136205,0.29829125,583.75,583.3,0.818]
[1741512139005,1.531,583.78,583.3,0.818]
[1741512139198,0.29829125,583.74,583.3,0.818]
[1741512141807,0.29829125,583.74,583.29,1.729]
[1741512142108,0.34255373,583.85,583.29,1.729]
[1741512142307,0.29829253,583.73,583.29,1.729]
[1741512142502,0.34255373,583.85,583.29,1.729]
[1741512143505,0.29827464,583.84,583.29,1.729]
[1741512145006,0.34255373,583.85,583.29,2.374]
[1741512145212,0.29828358,583.83,583.29,2.374]
[1741512148115,1.47,583.84,583.29,2.374]
[1741512148315,0.29831299,583.82,583.29,2.374]
[1741512151217,1.47,583.84,583.29,2.374]
[1741512151415,0.29829765,583.81,583.29,2.374]
[1741512153917,1.47,583.84,583.29,2.374]
[1741512154315,0.29828231,583.8,583.29,2.374]
[1741512157019,1.47,583.84,583.29,2.374]
[1741512157321,0.29828231,583.79,583.29,2.374]
[1741512160024,1.47,583.84,583.29,2.374]
[1741512160316,0.29828231,583.78,583.29,2.374]
[1741512163018,0.817,583.84,583.29,2.374]
[1741512163422,0.29828231,583.83,583.29,2.374]
[1741512165626,0.95128231,583.83,583.29,2.374]
[1741512166126,0.653,583.83,583.29,2.374]
[1741512166326,0.29828358,583.82,583.29,2.374]
[1741512169131,0.653,583.83,583.29,2.374]
[1741512169534,0.653,583.83,583.29,3.347]
[1741512170326,0.29825546,583.82,583.29,3.347]
[1741512172033,0.653,583.83,583.29,3.347]
[1741512173434,0.29824779,583.82,583.29,3.347]
[1741512174332,0.29056896,583.82,583.29,3.347]
[1741512178036,0.653,583.83,583.29,3.347]
[1741512178441,0.29824779,583.81,583.29,3.347]
[1741512181050,1.448,583.83,583.29,3.347]
[1741512181348,0.29824779,583.8,583.29,3.347]
[1741512184054,0.795,583.83,583.29,3.347]
[1741512184253,1.09323246,583.83,583.29,3.347]
[1741512185955,1.74623246,583.83,583.29,3.347]
[1741512187157,1.448,583.83,583.29,3.347]
[1741512187553,1.448,583.83,583.3,0.28750197]
[1741512188353,1.7463066,583.83,583.31,0.28750197]
[1741512188563,1.7463066,583.83,582.98,0.2983066]
[1741512188862,1.7463066,583.83,582.99,0.63055521]
[1741512189061,1.7463066,583.83,583.0,0.63054933]
[1741512189258,1.7463066,583.83,583.01,0.63054344]
[1741512189560,1.7463066,583.83,583.02,0.63053756]
[1741512189758,1.7463066,583.83,583.03,0.28749616]
[1741512190154,1.448,583.83,583.03,0.28749616]
[1741512191062,1.448,583.83,583.03,3.50549616]
[1741512191261,1.74626697,583.83,583.04,0.28750056]
[1741512192762,1.74626697,583.83,583.04,0.63053019]
[1741512193063,1.448,583.83,583.05,0.28750381]
[1741512194863,1.448,583.83,583.04,0.34302963]
[1741512195164,1.448,583.83,583.05,0.2874974]